lending/lending_fUSD_20250815
["ID","MTS","AMOUNT","RATE_DAILY","PERIOD"]
[379473302,1755299993545,-569.67144285,0.00017611,2]
[379473308,1755300001471,-173.495941,0.00017611,2]
[379473312,1755300002540,170.0,0.00017141,7]
[379473325,1755300080604,500.0,0.00028,30]
[379473326,1755300131307,2800.0,0.00017,3]
[379473327,1755300145814,2818.0,0.00017,2]
[379473328,1755300153598,421.49516231,0.00028,30]
[379473329,1755300189876,157.71,0.00017094,2]
[379473330,1755300208641,300.0,0.00017,2]
[379473331,1755300212183,1800.0,0.00028,30]
[379473332,1755300214649,507.59,0.00013699,2]
[379473334,1755300259297,1288.0,0.00017,2]
[379473335,1755300286149,-13.40064757,0.00017611,2]
[379473336,1755300286180,-3.85969186,0.00017611,2]
[379473337,1755300286283,1165.47932114,0.000173,2]
[379473338,1755300286309,834.52067886,0.000173,2]
[379473339,1755300312757,1388.0,0.000175,2]
[379473340,1755300325342,1200.66840134,0.000175,2]
[379473341,1755300332040,244.20367142,0.00017088,2]
[379473342,1755300346695,1899.0,0.000175,2]
[379473344,1755300397735,-173.495941,0.00017599,2]
[379473345,1755300397966,-563.27667515,0.000176,2]
[379473347,1755300404891,-400.0,0.000176,2]
[379473348,1755300418263,1170.0,0.000175,2]
[379473349,1755300432762,2853.38124753,0.00015,2]
[379473353,1755300452857,352.58638499,0.000166,2]
[379473354,1755300491110,-898.57880911,0.00017815,3]
[379473355,1755300498505,-150.42,0.00017611,2]
[379473356,1755300498546,-0.58,0.00017611,2]
[379473358,1755300506954,-150.0,0.00017611,2]
[379473420,1755300631653,-1.0,0.00017611,2]
[379473421,1755300631664,-101.42119089,0.00017815,3]
[379473422,1755300631673,-182.23732921,0.0001786,2]
[379473423,1755300631683,-545.95710274,0.00017861,2]
[379473424,1755300631693,-2525.9277,0.00017861,2]
[379473425,1755300631703,-300.0,0.00017899,2]
[379473426,1755300631713,-1200.0,0.00017899,2]
[379473427,1755300631722,-61093.58906615,0.000179,2]
[379473428,1755300631733,-592.62998414,0.000179,2]
[379473429,1755300631758,-273.96177892,0.000179,2]
[379473430,1755300631771,-261.40199664,0.000179,2]
[379473431,1755300631922,-297.30778928,0.000179,2]
[379473432,1755300631971,-10649.53011054,0.000179,2]
[379473433,1755300631983,-2986.67579596,0.000179,2]
[379473434,1755300631995,-6529.74149717,0.000179,2]
[379473435,1755300632009,-22177.52656441,0.000179,2]
[379473436,1755300632019,-5600.0,0.000179,6]
[379473437,1755300632029,-810.00716209,0.0001793,2]
[379473438,1755300632039,-444.99284836,0.0001793,2]
[379473439,1755300632048,-542.55891872,0.0001795,2]
[379473440,1755300632058,-277.35679052,0.0001795,2]
[379473441,1755300632068,-300.0,0.0001795,2]
[379473442,1755300632078,-160.0,0.0001795,2]
[379473443,1755300632087,-1000.0,0.0001795,2]
[379473445,1755300632096,-1000.0,0.0001795,2]
[379473447,1755300632105,-1000.0,0.0001795,2]
[379473449,1755300632114,-250.0,0.0001795,2]
[379473450,1755300632124,-840.72389569,0.0001795,2]
[379473451,1755300632135,-159.27610431,0.0001795,2]
[379473452,1755300632145,-250.0,0.0001795,2]
[379473453,1755300632155,-1000.0,0.0001795,2]
[379473454,1755300632165,-250.0,0.0001795,2]
[379473455,1755300632175,-1000.0,0.0001795,2]
[379473456,1755300632187,-250.0,0.0001795,2]
[379473457,1755300632196,-1500.0,0.0001795,2]
[379473459,1755300632207,-250.0,0.0001795,2]
[379473460,1755300632217,-1500.0,0.0001795,2]
[379473462,1755300632227,-250.0,0.0001795,2]
[379473463,1755300632238,-1500.0,0.0001795,2]
[379473464,1755300632248,-1500.0,0.0001795,2]
[379473465,1755300632259,-500.0,0.0001795,2]
[379473466,1755300632268,-1000.0,0.0001795,2]
[379473467,1755300632278,-1000.0,0.0001795,2]
[379473468,1755300632288,-1000.0,0.0001795,2]
[379473469,1755300632299,-1000.0,0.0001795,2]
[379473470,1755300632309,-1000.0,0.0001795,2]
[379473471,1755300632319,-1000.0,0.0001795,2]
[379473472,1755300632330,-1000.0,0.0001795,2]
[379473473,1755300632341,-1000.0,0.0001795,2]
[379473474,1755300632352,-1000.0,0.0001795,2]
[379473475,1755300632363,-895.66488961,0.0001795,2]
[379473476,1755300632372,-300.0,0.0001795,2]
[379473477,1755300632382,-300.0,0.0001795,2]
[379473479,1755300632391,-323.03653876,0.0001795,2]
[379473481,1755300632401,-500.0,0.0001795,2]
[379473482,1755300632411,-500.0,0.0001795,2]
[379473483,1755300632420,-500.0,0.0001795,2]
[379473484,1755300632430,-500.0,0.0001795,2]
[379473485,1755300632440,-151.0,0.00017961,2]
[379473486,1755300632450,-151.0,0.00017961,2]
[379473487,1755300632459,-151.0,0.00017961,2]
[379473488,1755300632468,-383.144895,0.00017961,2]
[379473489,1755300632478,-383.144895,0.00017961,2]
[379473490,1755300632488,-383.144895,0.00017961,2]
[379473491,1755300632498,-151.0,0.00017961,2]
[379473492,1755300632508,-151.0,0.00017961,2]
[379473493,1755300632518,-151.0,0.00017961,2]
[379473494,1755300632530,-383.144895,0.00017961,2]
[379473495,1755300632540,-383.144895,0.00017961,2]
[379473496,1755300632549,-383.144895,0.00017961,2]
[379473497,1755300632558,-769.222868,0.00017961,2]
[379473498,1755300632568,-769.222868,0.00017961,2]
[379473499,1755300632577,-769.222868,0.00017961,2]
[379473500,1755300632587,-769.222868,0.00017961,2]
[379473501,1755300632596,-769.222868,0.00017961,2]
[379473502,1755300632605,-769.222868,0.00017961,2]
[379473503,1755300632614,-184.241351,0.00017961,2]
[379473504,1755300632623,-184.241351,0.00017961,2]
[379473505,1755300632633,-184.241351,0.00017961,2]
[379473506,1755300632642,-151.0,0.00017961,2]
[379473507,1755300632651,-151.0,0.00017961,2]
[379473508,1755300632660,-226.325325,0.00017961,2]
[379473509,1755300632670,-184.241351,0.00017961,2]
[379473510,1755300632680,-184.241351,0.00017961,2]
[379473511,1755300632689,-184.241351,0.00017961,2]
[379473512,1755300632698,-151.0,0.00017961,2]
[379473513,1755300632708,-151.0,0.00017961,2]
[379473514,1755300632717,-151.0,0.00017961,2]
[379473516,1755300632726,-151.0,0.00017961,2]
[379473517,1755300632735,-263.567881,0.00017961,2]
[379473520,1755300632744,-151.0,0.00017961,2]
[379473522,1755300632754,-151.0,0.00017961,2]
[379473525,1755300632763,-151.0,0.00017961,2]
[379473528,1755300632772,-189.676,0.00017961,2]
[379473530,1755300632782,-704.455437,0.00017961,2]
[379473533,1755300632791,-704.455437,0.00017961,2]
[379473535,1755300632800,-704.455437,0.00017961,2]
[379473536,1755300632809,-704.455437,0.00017961,2]
[379473538,1755300632819,-704.455437,0.00017961,2]
[379473540,1755300632829,-704.455437,0.00017961,2]
[379473541,1755300632838,-151.0,0.00017961,2]
[379473543,1755300632847,-151.0,0.00017961,2]
[379473545,1755300632857,-151.0,0.00017961,2]
[379473547,1755300632866,-151.0,0.00017961,2]
[379473548,1755300632875,-151.0,0.00017961,2]
[379473550,1755300632885,-151.0,0.00017961,2]
[379473552,1755300632894,-151.0,0.00017961,2]
[379473553,1755300632904,-151.0,0.00017961,2]
[379473554,1755300632914,-151.0,0.00017961,2]
[379473555,1755300632923,-151.0,0.00017961,2]
[379473556,1755300632932,-151.0,0.00017961,2]
[379473557,1755300632942,-151.0,0.00017961,2]
[379473558,1755300632953,-151.0,0.00017961,2]
[379473559,1755300632963,-151.0,0.00017961,2]
[379473560,1755300632972,-151.0,0.00017961,2]
[379473561,1755300632982,-545.95710271,0.00017976,2]
[379473562,1755300632991,-151.0,0.00018,2]
[379473563,1755300633001,-383.144895,0.00018,2]
[379473564,1755300633012,-151.0,0.00018,2]
[379473565,1755300633023,-383.144895,0.00018,2]
[379473566,1755300633032,-769.222868,0.00018,2]
[379473567,1755300633046,-769.222868,0.00018,2]
[379473568,1755300633057,-184.241351,0.00018,2]
[379473569,1755300633067,-184.241351,0.00018,2]
[379473570,1755300633076,-151.0,0.00018,2]
[379473571,1755300633086,-151.0,0.00018,2]
[379473572,1755300633096,-704.455437,0.00018,2]
[379473573,1755300633107,-704.455437,0.00018,2]
[379473574,1755300633117,-151.0,0.00018,2]
[379473575,1755300633127,-151.0,0.00018,2]
[379473576,1755300633137,-218.121234,0.00018,2]
[379473577,1755300633146,-151.0,0.00018,2]
[379473578,1755300633156,-151.0,0.00018,2]
[379473579,1755300633166,-4307.05502853,0.00018,6]
[379473580,1755300633180,-6892.94497147,0.00018,6]
[379473581,1755300633190,-794.42,0.00018049,2]
[379473582,1755300633200,-794.42,0.00018049,2]
[379473583,1755300633209,-794.42,0.00018049,2]
[379473584,1755300633219,-794.42,0.00018049,2]
[379473585,1755300633229,-794.42,0.00018049,2]
[379473586,1755300633238,-794.42,0.00018049,2]
[379473587,1755300633248,-794.42,0.00018049,2]
[379473588,1755300633258,-794.42,0.00018049,2]
[379473589,1755300633267,-794.42,0.00018049,2]
[379473590,1755300633277,-794.42,0.00018049,2]
[379473591,1755300633286,-794.42,0.00018049,2]
[379473592,1755300633296,-794.42,0.00018049,2]
[379473593,1755300633306,-794.42,0.00018049,2]
[379473594,1755300633316,-794.42,0.00018049,2]
[379473595,1755300633326,-794.42,0.00018049,2]
[379473596,1755300633336,-794.42,0.00018049,2]
[379473597,1755300633345,-794.42,0.00018049,2]
[379473598,1755300633355,-794.42,0.00018049,2]
[379473599,1755300633365,-794.42,0.00018049,2]
[379473600,1755300633374,-794.42,0.00018049,2]
[379473601,1755300633384,-794.42,0.00018049,2]
[379473602,1755300633393,-794.42,0.00018049,2]
[379473603,1755300633403,-794.42,0.00018049,2]
[379473604,1755300633413,-794.48438847,0.00018049,2]
[379473605,1755300633422,-151.0,0.0001805,2]
[379473606,1755300633432,-151.0,0.0001805,2]
[379473607,1755300633441,-383.144895,0.0001805,2]
[379473608,1755300633451,-383.144895,0.0001805,2]
[379473609,1755300633719,-151.0,0.0001805,2]
[379473610,1755300633729,-151.0,0.0001805,2]
[379473611,1755300633739,-383.144895,0.0001805,2]
[379473612,1755300633749,-383.144895,0.0001805,2]
[379473613,1755300633759,-769.222868,0.0001805,2]
[379473614,1755300633769,-769.222868,0.0001805,2]
[379473615,1755300633778,-769.222868,0.0001805,2]
[379473616,1755300633788,-769.222868,0.0001805,2]
[379473617,1755300633798,-184.241351,0.0001805,2]
[379473618,1755300633807,-184.241351,0.0001805,2]
[379473619,1755300633817,-151.0,0.0001805,2]
[379473620,1755300633826,-151.0,0.0001805,2]
[379473621,1755300633835,-151.0,0.0001805,2]
[379473622,1755300633845,-151.0,0.0001805,2]
[379473623,1755300633855,-704.455437,0.0001805,2]
[379473624,1755300633864,-704.455437,0.0001805,2]
[379473625,1755300633874,-704.455437,0.0001805,2]
[379473626,1755300633884,-704.455437,0.0001805,2]
[379473627,1755300633895,-151.0,0.0001805,2]
[379473628,1755300633906,-151.0,0.0001805,2]
[379473629,1755300633915,-151.0,0.0001805,2]
[379473630,1755300633925,-151.0,0.0001805,2]
[379473631,1755300633934,-151.0,0.0001805,2]
[379473632,1755300633944,-203.73270573,0.0001805,2]
[379473633,1755300633954,-885.101183,0.00018061,2]
[379473634,1755300633965,-885.101183,0.00018061,2]
[379473635,1755300633975,-151.0,0.00018061,2]
[379473636,1755300633986,-885.101183,0.00018062,2]
[379473637,1755300633995,-885.101183,0.00018062,2]
[379473638,1755300634005,-151.0,0.00018062,2]
[379473639,1755300634016,-885.101183,0.00018068,2]
[379473640,1755300634025,-885.101183,0.00018068,2]
[379473641,1755300634035,-184.241351,0.00018068,2]
[379473642,1755300634057,-184.241351,0.00018068,2]
[379473643,1755300634067,-151.0,0.00018068,2]
[379473644,1755300634077,-151.0,0.00018068,2]
[379473645,1755300634086,-151.0,0.00018068,2]
[379473646,1755300634096,-151.0,0.00018068,2]
[379473647,1755300634106,-151.0,0.0001807,2]
[379473648,1755300634116,-383.144895,0.0001807,2]
[379473649,1755300634126,-151.0,0.0001807,2]
[379473650,1755300634136,-383.144895,0.0001807,2]
[379473651,1755300634146,-769.222868,0.0001807,2]
[379473652,1755300634156,-769.222868,0.0001807,2]
[379473653,1755300634166,-151.0,0.0001807,2]
[379473654,1755300634176,-151.0,0.0001807,2]
[379473655,1755300634185,-704.455437,0.0001807,2]
[379473656,1755300634195,-704.455437,0.0001807,2]
[379473657,1755300634205,-151.0,0.0001807,2]
[379473658,1755300634215,-151.0,0.00018072,2]
[379473659,1755300634225,-151.0,0.00018072,2]
[379473660,1755300634234,-885.101183,0.00018072,2]
[379473661,1755300634244,-885.101183,0.00018072,2]
[379473662,1755300634254,-151.0,0.00018072,2]
[379473663,1755300634265,-151.0,0.00018073,2]
[379473664,1755300634275,-151.0,0.00018073,2]
[379473665,1755300634284,-151.0,0.00018073,2]
[379473666,1755300634294,-151.0,0.00018073,2]
[379473667,1755300634303,-383.144895,0.00018073,2]
[379473668,1755300634313,-383.144895,0.00018073,2]
[379473669,1755300634322,-383.144895,0.00018073,2]
[379473670,1755300634331,-151.0,0.00018073,2]
[379473671,1755300634342,-210.0,0.00018073,2]
[379473672,1755300634352,-383.144895,0.00018073,2]
[379473673,1755300634361,-383.144895,0.00018073,2]
[379473674,1755300634371,-383.144904,0.00018073,2]
[379473675,1755300634380,-151.0,0.00018073,2]
[379473676,1755300634390,-769.222868,0.00018073,2]
[379473677,1755300634399,-769.222868,0.00018073,2]
[379473678,1755300634408,-769.222868,0.00018073,2]
[379473679,1755300634418,-169.53183266,0.00018073,2]
[379473680,1755300634432,-599.69103534,0.00018073,2]
[379473681,1755300634441,-769.222868,0.00018073,2]
[379473682,1755300634451,-769.222859,0.00018073,2]
[379473683,1755300634461,-885.101183,0.00018073,2]
[379473684,1755300634470,-885.101183,0.00018073,2]
[379473685,1755300634480,-184.241351,0.00018073,2]
[379473686,1755300634489,-184.241351,0.00018073,2]
[379473687,1755300634499,-184.241351,0.00018073,2]
[379473688,1755300634508,-184.241351,0.00018073,2]
[379473689,1755300634518,-184.241351,0.00018073,2]
[379473690,1755300634529,-184.241351,0.00018073,2]
[379473691,1755300634539,-151.0,0.00018073,2]
[379473692,1755300634548,-151.0,0.00018073,2]
[379473693,1755300634558,-151.0,0.00018073,2]
[379473694,1755300634574,-151.0,0.00018073,2]
[379473695,1755300634592,-151.0,0.00018073,2]
[379473696,1755300634602,-151.0,0.00018073,2]
[379473697,1755300634612,-151.0,0.00018073,2]
[379473698,1755300634622,-704.455437,0.00018073,2]
[379473699,1755300634631,-704.455437,0.00018073,2]
[379473700,1755300634641,-704.455437,0.00018073,2]
[379473701,1755300634658,-704.455437,0.00018073,2]
[379473702,1755300634678,-704.455437,0.00018073,2]
[379473703,1755300634690,-704.455444,0.00018073,2]
[379473704,1755300634700,-151.0,0.00018073,2]
[379473705,1755300634709,-271.554984,0.00018073,2]
[379473706,1755300634719,-151.0,0.00018073,2]
[379473707,1755300634728,-151.0,0.00018073,2]
[379473708,1755300634738,-151.0,0.00018073,2]
[379473709,1755300634747,-261.795483,0.00018073,2]
[379473710,1755300634757,-151.0,0.00018073,2]
[379473711,1755300634767,-152.816518,0.00018073,2]
[379473712,1755300634776,-5749.60315116,0.0001809,2]
[379473713,1755300634788,-1787.61684884,0.0001809,2]
[379473714,1755300634797,-545.95710271,0.00018092,2]
[379473715,1755300634807,-1596.19,0.000181,2]
[379473716,1755300634816,-847.97,0.000181,2]
[379473717,1755300634825,-6137.76604845,0.000181,6]
[379473784,1755300638918,-185.41,0.0001804,2]
[379473786,1755300638928,-357.43554582,0.000181,6]
[379473788,1755300638940,-1000.0,0.000181,6]
[379473791,1755300638951,-2830.30347688,0.000181,6]
[379473794,1755300638978,-1916.15866498,0.000181,6]
[379473809,1755300639110,-1211.20020554,0.000181,6]
[379473812,1755300639122,-313.154501,0.000181,6]
[379473882,1755300639853,-2646.40394606,0.000181,6]
[379473885,1755300639868,-487.57761127,0.000181,6]
[379473887,1755300639877,-151.0,0.00018155,2]
[379473889,1755300639887,-885.101183,0.00018155,2]
[379473891,1755300639896,-885.101183,0.00018155,2]
[379473893,1755300639905,-885.101183,0.00018155,2]
[379473895,1755300639914,-885.101183,0.00018155,2]
[379473897,1755300639923,-184.241351,0.00018155,2]
[379473899,1755300639932,-184.241359,0.00018155,2]
[379473901,1755300639941,-151.0,0.00018155,2]
[379473903,1755300639950,-151.0,0.00018155,2]
[379473905,1755300639960,-151.0,0.00018171,2]
[379473907,1755300639970,-151.0,0.00018172,2]
[379473909,1755300639979,-151.0,0.00018172,2]
[379473911,1755300639988,-885.101183,0.00018172,2]
[379473913,1755300639997,-885.101183,0.00018172,2]
[379473915,1755300640006,-885.101183,0.00018172,2]
[379473917,1755300640017,-885.101183,0.00018172,2]
[379473919,1755300640026,-885.101183,0.00018172,2]
[379473921,1755300640035,-885.101176,0.00018172,2]
[379473923,1755300640044,-151.0,0.00018172,2]
[379473925,1755300640053,-151.0,0.00018173,2]
[379473927,1755300640062,-151.0,0.00018177,2]
[379473929,1755300640072,-185.41,0.0001819,2]
[379473931,1755300640082,-331.76,0.00018192,2]
[379473933,1755300640091,-165.88,0.00018197,2]
[379473935,1755300640100,-150.0,0.000182,2]
[379473937,1755300640109,-346.7,0.000182,2]
[379473939,1755300640118,-468.42,0.000182,2]
[379473941,1755300640127,-302.64,0.000182,2]
[379473943,1755300640138,-377.9,0.000182,2]
[379473945,1755300640147,-8502.19683398,0.000182,6]
[379473947,1755300640159,-405.51550006,0.000182,6]
[379473952,1755300640198,-13592.28766596,0.000182,6]
[379473954,1755300640208,-545.95710271,0.00018207,2]
[379473956,1755300640218,-468.42,0.00018225,2]
[379473958,1755300640227,-468.42,0.00018225,2]
[379473960,1755300640236,-798.2,0.00018225,2]
[379473962,1755300640246,-798.2,0.00018225,2]
[379473964,1755300640255,-18622.36977729,0.000183,6]
[379474248,1755300643112,-4696.48487128,0.000183,6]
[379474512,1755300645671,-4881.14535143,0.000183,6]
[379474514,1755300645681,-545.95710271,0.00018323,2]
[379474516,1755300645691,-720.48,0.000184,2]
[379474518,1755300645700,-1980.11686428,0.000184,6]
[379474520,1755300645712,-3619.88313572,0.000184,6]
[379474523,1755300645722,-160.0,0.00018419,2]
[379474525,1755300645731,-196.70704146,0.00018429,2]
[379474527,1755300645741,-328.50982482,0.00018438,2]
[379474534,1755300645806,-217.44727789,0.00018438,2]
[379474536,1755300645815,-168.0,0.00018443,2]
[379474538,1755300645825,-300.0,0.00018496,2]
[379474540,1755300645835,-253.75250564,0.000185,2]
[379474547,1755300645945,-9740.06433697,0.000185,2]
[379474548,1755300645955,-2004.93566303,0.000185,6]
[379474745,1755300655680,344.75,0.00024685,30]
[379474746,1755300668194,1000.0,0.00017081,2]
[379474747,1755300745020,500.0,0.00028,30]
[379474748,1755300832444,160.24,0.00028,30]
[379474749,1755300884524,-150.0,0.0001783,2]
[379474751,1755300889931,-346.7,0.0001783,2]
[379474752,1755300897110,-468.42,0.0001783,2]
[379474753,1755300899163,2000.0,0.00028,30]
[379474754,1755300904620,-302.64,0.0001783,2]
[379474755,1755300943594,-165.88,0.00017828,2]
[379474756,1755301030691,7470.88,0.00017099,2]
[379474757,1755301032868,168.59,0.00026735,120]
[379474758,1755301036353,-151.0,0.00017823,2]
[379474759,1755301161058,170.0,0.00017798,7]
[379474760,1755301204645,-377.9,0.000179,6]
[379474761,1755301216664,-331.76,0.00017826,3]
[379474762,1755301230568,-185.41,0.00017826,3]
[379474763,1755301241239,-151.0,0.00017826,3]
[379474764,1755301253572,-151.0,0.00017826,3]
[379474765,1755301266496,-151.0,0.000178,2]
[379474766,1755301278711,-180.83,0.00017826,3]
[379474767,1755301278756,-523.441183,0.00017876,3]
[379474768,1755301291286,-151.0,0.00017876,3]
[379474769,1755301303319,-151.0,0.00017876,3]
[379474770,1755301316128,-151.0,0.00017876,3]
[379474771,1755301330232,-184.241351,0.000179,6]
[379474772,1755301341891,-885.101183,0.00017812,3]
[379474773,1755301348612,-33.3429923,0.000178,2]
[379474774,1755301348660,-8435.51084938,0.000178,2]
[379474775,1755301356160,-885.101183,0.000178,2]
[379474776,1755301360161,1000.0,0.00028,30]
[379474777,1755301363226,-885.101183,0.000178,2]
[379474778,1755301370451,-885.101183,0.000178,2]
[379474779,1755301377403,-885.101176,0.000178,2]
[379474780,1755301384556,-885.101183,0.000178,2]
[379474781,1755301391638,-885.101183,0.000178,2]
[379474782,1755301398704,-885.101183,0.000178,2]
[379474783,1755301406627,-885.101183,0.000178,2]
[379474784,1755301413749,-184.241359,0.00017742,2]
[379474785,1755301420799,-151.0,0.00017742,2]
[379474786,1755301427845,-151.0,0.00017742,2]
[379474787,1755301434940,-487.57761127,0.00017742,2]
[379474788,1755301446958,-1200.0,0.00017742,2]
[379474789,1755301453988,500.0,0.00028,30]
[379474790,1755301459115,-28.72897027,0.00017742,2]
[379474791,1755301459148,-342.54205946,0.00017742,2]
[379474792,1755301471375,-500.0,0.000178,2]
[379474793,1755301493566,-2343.51,0.000178,2]
[379474794,1755301511001,1312.81,0.00028,30]
[379474795,1755301513887,482.21,0.00013699,2]
[379474796,1755301515680,-863.25,0.000178,2]
[379474798,1755301520066,150.0,0.00017088,2]
[379474799,1755301520284,150.0,0.00017088,2]
[379474800,1755301537778,-61.92094487,0.00017562,2]
[379474801,1755301537803,-88.07905513,0.00017562,2]
[379474802,1755301561355,-634.0,0.000178,2]
[379474803,1755301619942,-201.58654232,0.00017747,2]
[379474899,1755301644248,-749.40406482,0.00017747,2]
[379474902,1755301699917,3312.02,0.00028,30]
[379474903,1755301755776,500.0,0.00028,30]
[379474904,1755301773749,150.0,0.00028,30]
[379474915,1755301831864,-49.00939286,0.00017747,2]
[379474916,1755301831873,-142.91969362,0.000178,2]
[379474917,1755301831882,-17.59,0.00017823,2]
[379474918,1755301831891,-88.0,0.00017828,2]
[379474919,1755301831899,-9.36188608,0.0001783,2]
[379474920,1755301831936,-137.88811392,0.0001783,2]
[379474921,1755301831945,-168.0,0.00017845,2]
[379474922,1755301831955,-2300.0,0.000179,6]
[379474923,1755301831964,-978.10092153,0.00017999,2]
[379474924,1755301831978,-221.89907847,0.00017999,2]
[379474925,1755301831987,-434.28261177,0.00018,6]
[379474926,1755301832007,-2301.14037828,0.00018,6]
[379474932,1755301832251,-875.95952308,0.00018,6]
[379474942,1755301837780,-988.61748687,0.00018,6]
[379474943,1755301837790,-150.0,0.00018037,2]
[379474944,1755301837799,-300.0,0.00018099,2]
[379474945,1755301837810,-538.83,0.000181,2]
[379474946,1755301837820,-300.0,0.000181,2]
[379474947,1755301837829,-360.24,0.000181,2]
[379474950,1755301837838,-6900.0,0.000181,6]
[379474951,1755301837848,-859.74591992,0.00018156,2]
[379474952,1755301837858,-277.35679052,0.00018188,2]
[379474953,1755301837867,-165.88,0.00018192,2]
[379474954,1755301837877,-165.88,0.00018192,2]
[379474955,1755301837886,-165.88,0.00018192,2]
[379474956,1755301837895,-165.88,0.00018192,2]
[379474957,1755301837904,-165.88,0.00018192,2]
[379474958,1755301837915,-150.0,0.00018192,2]
[379474959,1755301837924,-302.64,0.00018192,2]
[379474960,1755301837933,-165.88,0.000182,2]
[379474961,1755301837943,-165.88,0.000182,2]
[379474962,1755301837953,-150.0,0.000182,2]
[379474963,1755301837963,-165.88,0.000182,2]
[379474964,1755301837977,-150.0,0.000182,2]
[379474965,1755301837988,-150.0,0.000182,2]
[379474966,1755301837997,-9200.0,0.000182,6]
[379474967,1755301838006,-35.52980269,0.000183,2]
[379474968,1755301838018,-324.71019731,0.000183,2]
[379474969,1755301838027,-857.59093504,0.000183,6]
[379474970,1755301838038,-10642.40906496,0.000183,6]
[379474971,1755301838053,-2300.0,0.000184,6]
[379474972,1755301838064,-213.09929491,0.00018429,2]
[379474973,1755301838073,-1200.0,0.00018493,2]
[379474974,1755301838083,-472.04599711,0.00018496,2]
[379474975,1755301838092,-160.0,0.00018496,2]
[379474976,1755301838101,-1367.8865667,0.00018498,2]
[379474977,1755301838111,-1531.5552425,0.00018499,2]
[379475005,1755301839847,-1458.03187718,0.00018499,2]
[379475006,1755301839939,-525.25437052,0.00018499,2]
[379475007,1755301843733,-173.45,0.00018192,2]
[379475008,1755301843742,-4950.7068318,0.00018499,2]
[379475009,1755301843751,-224.68749324,0.000185,2]
[379475010,1755301843761,-187.54286,0.000185,2]
[379475011,1755301843770,-187.54287,0.000185,2]
[379475012,1755301843781,-187.54287,0.000185,2]
[379475013,1755301843790,-187.54287,0.000185,2]
[379475014,1755301843800,-187.54286,0.000185,2]
[379475015,1755301843810,-187.54287,0.000185,2]
[379475016,1755301843819,-200.69781828,0.000185,2]
[379475017,1755301843829,-1344.36816253,0.000185,6]
[379475018,1755301843840,-955.63183747,0.000185,6]
[379475019,1755301843850,-150.0,0.00018512,2]
[379475020,1755301843859,-168.0,0.00018535,2]
[379475021,1755301843868,-2300.0,0.000186,6]
[379475022,1755301843878,-469.3874796,0.00018652,2]
[379475023,1755301843887,-57.65989558,0.00018653,2]
[379475065,1755301844353,-761.81738295,0.00018653,2]
[379475067,1755301844364,-168.0,0.00018673,2]
[379475069,1755301844373,-400.05838772,0.00018678,2]
[379475110,1755301923328,316.02,0.00024685,30]
[379475111,1755302000749,150.0,0.00028,30]
[379475112,1755302058690,170.0,0.00017875,7]
[379475113,1755302075780,1860.0,0.00028,30]
[379475114,1755302114790,500.0,0.00028,30]
[379475115,1755302255986,3002.0,0.00028,30]